[Event "World Junior Chess Championship U20 2022"]
[White "Chukavin, Kirill"]
[Black "Stefansson, Vignir Vatnar"]
[WhiteFideId "4503023"]
[BlackFideId "2308649"]
[WhiteElo "2384"]
[BlackElo "2471"]
[Result "0-1"]
[Round "02"]
[TimeControl "5400+30"]
[Date "2022.10.13"]
[WhiteClock "0:13:57"]
[BlackClock "0:40:08"]

1. e4 {[%clk 1:21:00]}  e6 {[%clk 1:30:21]} 2. d4 {[%clk 1:21:13]}  d5 {[%clk 1:30:43]} 3. Nd2 {[%clk 1:21:29]}  Be7 {[%clk 1:30:54]} 4. Bd3 {[%clk 1:16:07]}  c5 {[%clk 1:31:14]} 5. dxc5 {[%clk 1:14:05]}  Nf6 {[%clk 1:31:37]} 6. Qe2 {[%clk 1:05:17]}  O-O {[%clk 1:31:22]} 7. Ngf3 {[%clk 1:05:27]}  a5 {[%clk 1:31:45]} 8. O-O {[%clk 1:02:23]}  Na6 {[%clk 1:32:12]} 9. exd5 {[%clk 0:58:29]}  exd5 {[%clk 1:18:37]} 10. Re1 {[%clk 0:44:31]}  Re8 {[%clk 1:16:24]} 11. Bb5 {[%clk 0:44:45]}  Bd7 {[%clk 1:15:47]} 12. Bxd7 {[%clk 0:35:48]}  Qxd7 {[%clk 1:15:13]} 13. Ne5 {[%clk 0:32:39]}  Qc7 {[%clk 1:13:36]} 14. Qb5 {[%clk 0:27:06]}  Nb4 {[%clk 1:03:24]} 15. Qa4 {[%clk 0:15:45]}  Bxc5 {[%clk 1:02:57]} 16. Ndf3 {[%clk 0:14:20]}  Ne4 {[%clk 1:02:23]} 17. Re2 {[%clk 0:11:06]}  Nxf2 {[%clk 0:54:13]} 18. Be3 {[%clk 0:06:59]}  Bxe3 {[%clk 0:53:42]} 19. Rxe3 {[%clk 0:07:16]}  Qxc2 {[%clk 0:48:49]} 20. Qd7 {[%clk 0:06:45]}  Rf8 {[%clk 0:48:28]} 21. Rf1 {[%clk 0:05:26]}  Ne4 {[%clk 0:47:33]} 22. Kh1 {[%clk 0:02:23]}  Qc8 {[%clk 0:42:51]} 23. a3 {[%clk 0:01:07]}  Qc5 {[%clk 0:39:19]} 24. Re2 {[%clk 0:00:58]}  Nc6 {[%clk 0:38:45]} 25. Qxb7 {[%clk 0:01:01]}  Nxe5 {[%clk 0:37:59]} 26. Nxe5 {[%clk 0:01:29]}  Ra7 {[%clk 0:36:23]} 27. Qc6 {[%clk 0:00:50]}  Qd4 {[%clk 0:28:35]} 28. Nf3 {[%clk 0:01:00]}  Qd3 {[%clk 0:29:00]} 29. Qc2 {[%clk 0:00:52]}  Qa6 {[%clk 0:28:12]} 30. Rc1 {[%clk 0:00:42]}  Re7 {[%clk 0:27:39]} 31. Nd4 {[%clk 0:00:42]}  Qf6 {[%clk 0:26:50]} 32. Rd1 {[%clk 0:00:34]}  Rfe8 {[%clk 0:26:19]} 33. Kg1 {[%clk 0:00:58]}  Nd6 {[%clk 0:19:12]} 34. Rxe7 {[%clk 0:00:53]}  Qxe7 {[%clk 0:19:36]} 35. Nf3 {[%clk 0:00:56]}  Nc4 {[%clk 0:18:13]} 36. Qf2 {[%clk 0:01:15]}  Qb7 {[%clk 0:18:31]} 37. Qd4 {[%clk 0:00:48]}  Qb8 {[%clk 0:17:19]} 38. h3 {[%clk 0:00:34]}  h6 {[%clk 0:17:34]} 39. Kh1 {[%clk 0:00:49]}  a4 {[%clk 0:16:38]} 40. Nd2 {[%clk 0:00:33]}  Qxb2 {[%clk 0:10:42]} 41. Qxd5 {[%clk 0:17:01]}  Nxd2 {[%clk 0:39:46]} 42. Rxd2 {[%clk 0:15:00]}  Qxa3 {[%clk 0:39:27]} 43. Rf2 {[%clk 0:13:44]}  Qa1+ {[%clk 0:39:42]} 44. Kh2 {[%clk 0:13:57]}  Qe5+ {[%clk 0:40:08]} 0-1


[Site "http://www.chessbomb.com"]

[Event "World Junior Chess Championship U20 2022"]
[White "Nogerbek, Kazybek"]
[Black "Rohith, Krishna S"]
[WhiteFideId "13710427"]
[BlackFideId "46617051"]
[WhiteElo "2467"]
[BlackElo "2370"]
[Result "1/2-1/2"]
[Round "02"]
[TimeControl "5400+30"]
[Date "2022.10.13"]
[WhiteClock "0:21:07"]
[BlackClock "0:06:27"]

1. d4 {[%clk 1:29:13]}  Nf6 {[%clk 1:30:21]} 2. Nf3 {[%clk 1:29:27]}  e6 {[%clk 1:30:06]} 3. c4 {[%clk 1:29:25]}  d5 {[%clk 1:29:30]} 4. Nc3 {[%clk 1:29:15]}  Be7 {[%clk 1:29:09]} 5. Bf4 {[%clk 1:29:07]}  O-O {[%clk 1:28:58]} 6. e3 {[%clk 1:29:03]}  b6 {[%clk 1:29:02]} 7. cxd5 {[%clk 1:28:30]}  Nxd5 {[%clk 1:27:23]} 8. Nxd5 {[%clk 1:28:33]}  exd5 {[%clk 1:24:22]} 9. Bd3 {[%clk 1:26:44]}  c5 {[%clk 1:17:49]} 10. b3 {[%clk 1:24:09]}  Nc6 {[%clk 1:10:12]} 11. O-O {[%clk 1:22:59]}  Be6 {[%clk 1:02:46]} 12. Rc1 {[%clk 1:18:20]}  Nb4 {[%clk 0:46:49]} 13. Bb1 {[%clk 1:16:27]}  a5 {[%clk 0:47:11]} 14. Ne5 {[%clk 1:14:20]}  Qe8 {[%clk 0:47:17]} 15. Nd3 {[%clk 1:05:40]}  Rc8 {[%clk 0:35:47]} 16. dxc5 {[%clk 0:58:31]}  bxc5 {[%clk 0:36:01]} 17. a3 {[%clk 0:58:30]}  Nxd3 {[%clk 0:34:37]} 18. Qxd3 {[%clk 0:58:40]}  f5 {[%clk 0:34:53]} 19. Qa6 {[%clk 0:51:53]}  Qc6 {[%clk 0:32:42]} 20. Qxa5 {[%clk 0:49:25]}  Ra8 {[%clk 0:31:53]} 21. Qc3 {[%clk 0:49:20]}  Rxa3 {[%clk 0:31:17]} 22. Be5 {[%clk 0:49:30]}  Rf7 {[%clk 0:23:01]} 23. Qb2 {[%clk 0:45:33]}  Qa8 {[%clk 0:21:58]} 24. Bc2 {[%clk 0:39:44]}  Bf8 {[%clk 0:22:22]} 25. Ra1 {[%clk 0:39:33]}  Rfa7 {[%clk 0:21:06]} 26. Rxa3 {[%clk 0:39:24]}  Rxa3 {[%clk 0:21:29]} 27. Qb1 {[%clk 0:38:52]}  g6 {[%clk 0:18:10]} 28. h3 {[%clk 0:37:57]}  Qb7 {[%clk 0:17:03]} 29. Qd1 {[%clk 0:34:01]}  Bg7 {[%clk 0:15:17]} 30. Bxg7 {[%clk 0:31:50]}  Qxg7 {[%clk 0:15:17]} 31. Qc1 {[%clk 0:32:05]}  Ra5 {[%clk 0:14:14]} 32. Bd3 {[%clk 0:30:21]}  Qe5 {[%clk 0:12:56]} 33. Rd1 {[%clk 0:28:03]}  Bf7 {[%clk 0:12:19]} 34. Be2 {[%clk 0:25:34]}  Kg7 {[%clk 0:11:36]} 35. Bf3 {[%clk 0:25:42]}  Rb5 {[%clk 0:09:36]} 36. Be2 {[%clk 0:20:59]}  Rxb3 {[%clk 0:07:12]} 37. Qxc5 {[%clk 0:21:20]}  f4 {[%clk 0:07:32]} 38. Bd3 {[%clk 0:20:21]}  fxe3 {[%clk 0:07:31]} 39. fxe3 {[%clk 0:20:09]}  Rc3 {[%clk 0:06:40]} 40. Qa7 {[%clk 0:19:34]}  Rc7 {[%clk 0:06:49]} 41. Qd4 {[%clk 0:19:22]}  Qxd4 {[%clk 0:06:46]} 42. exd4 {[%clk 0:19:38]}  Ra7 {[%clk 0:06:37]} 43. Be2 {[%clk 0:19:38]}  Be6 {[%clk 0:06:54]} 44. Bf3 {[%clk 0:19:56]}  Kf6 {[%clk 0:07:15]} 45. Kf2 {[%clk 0:20:00]}  Ra3 {[%clk 0:06:08]} 46. Rb1 {[%clk 0:19:58]}  Ra2+ {[%clk 0:05:34]} 47. Ke3 {[%clk 0:19:58]}  Ra3+ {[%clk 0:06:01]} 48. Kf2 {[%clk 0:20:42]}  Ra2+ {[%clk 0:06:27]} 49. Ke3 {[%clk 0:21:07]} 1/2-1/2


[Site "http://www.chessbomb.com"]

[Event "World Junior Chess Championship U20 2022"]
[White "Gatineau, Yovann"]
[Black "Kosakowski, Jakub"]
[WhiteFideId "26028999"]
[BlackFideId "1185080"]
[WhiteElo "2375"]
[BlackElo "2465"]
[Result "0-1"]
[Round "02"]
[TimeControl "5400+30"]
[Date "2022.10.13"]
[WhiteClock "0:01:01"]
[BlackClock "0:41:24"]

1. e4 {[%clk 0:00:00]}  c6 {[%clk 1:30:39]} 2. d4 {[%clk 1:27:04]}  d5 {[%clk 1:30:59]} 3. e5 {[%clk 1:27:23]}  Bf5 {[%clk 1:31:03]} 4. Nd2 {[%clk 1:27:33]}  e6 {[%clk 1:31:08]} 5. Nb3 {[%clk 1:27:57]}  a6 {[%clk 1:31:06]} 6. Nf3 {[%clk 1:25:49]}  Nd7 {[%clk 1:31:10]} 7. Be3 {[%clk 1:23:28]}  Rc8 {[%clk 1:27:35]} 8. Be2 {[%clk 1:13:50]}  c5 {[%clk 1:27:21]} 9. dxc5 {[%clk 1:13:54]}  Bxc5 {[%clk 1:27:30]} 10. Nfd4 {[%clk 1:10:47]}  Ne7 {[%clk 1:26:11]} 11. Nxc5 {[%clk 1:10:47]}  Nxc5 {[%clk 1:26:09]} 12. g4 {[%clk 1:03:13]}  Be4 {[%clk 1:22:55]} 13. f3 {[%clk 1:01:44]}  Bg6 {[%clk 1:23:15]} 14. f4 {[%clk 0:54:06]}  Be4 {[%clk 1:14:23]} 15. Bf3 {[%clk 0:53:12]}  h5 {[%clk 1:01:03]} 16. f5 {[%clk 0:44:06]}  Bxf3 {[%clk 0:53:48]} 17. Qxf3 {[%clk 0:44:22]}  hxg4 {[%clk 0:53:49]} 18. Qxg4 {[%clk 0:43:33]}  Nxf5 {[%clk 0:54:06]} 19. Nxf5 {[%clk 0:42:26]}  exf5 {[%clk 0:54:29]} 20. Qxf5 {[%clk 0:35:06]}  Qh4+ {[%clk 0:54:26]} 21. Bf2 {[%clk 0:34:30]}  Qe4+ {[%clk 0:54:41]} 22. Qxe4 {[%clk 0:34:54]}  Nxe4 {[%clk 0:55:06]} 23. c3 {[%clk 0:33:35]}  Kd7 {[%clk 0:55:03]} 24. O-O {[%clk 0:18:20]}  Ke6 {[%clk 0:52:12]} 25. Bd4 {[%clk 0:08:31]}  Rh4 {[%clk 0:45:34]} 26. Kg2 {[%clk 0:05:08]}  Rch8 {[%clk 0:45:20]} 27. Rh1 {[%clk 0:04:06]}  R8h6 {[%clk 0:40:43]} 28. Rag1 {[%clk 0:02:56]}  Rf4 {[%clk 0:39:45]} 29. h3 {[%clk 0:03:03]}  Nd2 {[%clk 0:39:55]} 30. Bf2 {[%clk 0:00:35]}  Rg6+ {[%clk 0:39:26]} 31. Bg3 {[%clk 0:00:59]}  Ne4 {[%clk 0:39:05]} 32. Kh2 {[%clk 0:00:58]}  Nxg3 {[%clk 0:39:23]} 33. Rxg3 {[%clk 0:01:21]}  Rf2+ {[%clk 0:39:48]} 34. Kg1 {[%clk 0:01:47]}  Rxb2 {[%clk 0:40:14]} 35. Rxg6+ {[%clk 0:01:53]}  fxg6 {[%clk 0:40:39]} 36. Rh2 {[%clk 0:01:01]}  Rxh2 {[%clk 0:40:58]} 37. Kxh2 {[%clk 0:01:01]}  Kxe5 {[%clk 0:41:24]} 0-1


[Site "http://www.chessbomb.com"]

[Event "World Junior Chess Championship U20 2022"]
[White "Mladek, Richard"]
[Black "Ramoutar, Alan-Safar"]
[WhiteFideId "386588"]
[BlackFideId "7704224"]
[WhiteElo "2371"]
[BlackElo "2449"]
[Result "1-0"]
[Round "02"]
[TimeControl "5400+30"]
[Date "2022.10.13"]
[WhiteClock "0:02:48"]
[BlackClock "0:00:49"]

1. d4 {[%clk 1:30:57]}  d5 {[%clk 1:30:44]} 2. c4 {[%clk 1:31:22]}  e6 {[%clk 1:31:05]} 3. Nc3 {[%clk 1:31:22]}  c6 {[%clk 1:31:25]} 4. e3 {[%clk 1:31:15]}  Nf6 {[%clk 1:31:39]} 5. Nf3 {[%clk 1:31:37]}  a6 {[%clk 1:31:27]} 6. b3 {[%clk 1:31:02]}  Bb4 {[%clk 1:31:37]} 7. Bd2 {[%clk 1:31:02]}  Nbd7 {[%clk 1:31:49]} 8. Bd3 {[%clk 1:31:22]}  O-O {[%clk 1:32:07]} 9. O-O {[%clk 1:31:36]}  Bd6 {[%clk 1:32:08]} 10. e4 {[%clk 1:31:11]}  dxc4 {[%clk 1:31:53]} 11. bxc4 {[%clk 1:30:08]}  e5 {[%clk 1:32:10]} 12. c5 {[%clk 1:30:13]}  Bc7 {[%clk 1:32:28]} 13. Na4 {[%clk 1:30:22]}  exd4 {[%clk 1:32:34]} 14. h3 {[%clk 1:30:38]}  Re8 {[%clk 1:24:30]} 15. Qc2 {[%clk 1:29:55]}  h6 {[%clk 1:22:37]} 16. Rad1 {[%clk 1:28:24]}  Nh5 {[%clk 1:21:07]} 17. Nxd4 {[%clk 1:11:26]}  Ne5 {[%clk 1:16:31]} 18. Be3 {[%clk 1:09:55]}  Qh4 {[%clk 1:07:42]} 19. f4 {[%clk 0:54:43]}  Qg3 {[%clk 0:42:45]} 20. Bc1 {[%clk 0:54:55]}  Bxh3 {[%clk 0:35:07]} 21. fxe5 {[%clk 0:54:39]}  Bxe5 {[%clk 0:33:53]} 22. Nf3 {[%clk 0:53:31]}  Bg4 {[%clk 0:24:07]} 23. Qf2 {[%clk 0:44:56]}  Bxf3 {[%clk 0:21:45]} 24. Qxg3 {[%clk 0:44:38]}  Bd4+ {[%clk 0:16:42]} 25. Kh2 {[%clk 0:43:43]}  Nxg3 {[%clk 0:17:08]} 26. Rxf3 {[%clk 0:44:00]}  Nxe4 {[%clk 0:16:57]} 27. Bc4 {[%clk 0:39:46]}  Be5+ {[%clk 0:14:16]} 28. Kg1 {[%clk 0:35:56]}  Nf6 {[%clk 0:14:07]} 29. Rfd3 {[%clk 0:32:21]}  Re7 {[%clk 0:08:45]} 30. Bb3 {[%clk 0:28:17]}  Rae8 {[%clk 0:08:34]} 31. Bb2 {[%clk 0:22:58]}  Bxb2 {[%clk 0:08:41]} 32. Nxb2 {[%clk 0:23:26]}  Ng4 {[%clk 0:07:24]} 33. Rd8 {[%clk 0:22:31]}  Rxd8 {[%clk 0:07:24]} 34. Rxd8+ {[%clk 0:22:59]}  Kh7 {[%clk 0:07:23]} 35. Kf1 {[%clk 0:21:44]}  f5 {[%clk 0:05:33]} 36. Nc4 {[%clk 0:20:27]}  g5 {[%clk 0:02:46]} 37. Bc2 {[%clk 0:14:45]}  Kg6 {[%clk 0:02:51]} 38. Rf8 {[%clk 0:15:07]}  Kh5 {[%clk 0:00:48]} 39. Rxf5 {[%clk 0:13:52]}  Kh4 {[%clk 0:00:51]} 40. Bd3 {[%clk 0:07:27]}  Nh2+ {[%clk 0:00:46]} 41. Kf2 {[%clk 0:06:14]}  Ng4+ {[%clk 0:28:49]} 42. Kg1 {[%clk 0:30:12]}  Ne3 {[%clk 0:26:58]} 43. Nd6 {[%clk 0:26:03]}  g4 {[%clk 0:23:40]} 44. Rf8 {[%clk 0:19:38]}  Re5 {[%clk 0:22:40]} 45. Ne4 {[%clk 0:19:07]}  Nf5 {[%clk 0:19:07]} 46. Kf2 {[%clk 0:17:02]}  Rd5 {[%clk 0:14:06]} 47. Bc4 {[%clk 0:15:57]}  Re5 {[%clk 0:10:19]} 48. g3+ {[%clk 0:13:29]}  Kh3 {[%clk 0:10:42]} 49. Bd3 {[%clk 0:08:45]}  Nd4 {[%clk 0:08:09]} 50. Ke3 {[%clk 0:06:38]}  Rd5 {[%clk 0:06:26]} 51. Bc4 {[%clk 0:05:13]}  Nc2+ {[%clk 0:06:27]} 52. Kf2 {[%clk 0:04:28]}  Re5 {[%clk 0:06:30]} 53. Rf6 {[%clk 0:02:23]}  h5 {[%clk 0:06:43]} 54. Bd3 {[%clk 0:02:21]}  Nb4 {[%clk 0:06:25]} 55. Bb1 {[%clk 0:02:04]}  Nd5 {[%clk 0:05:32]} 56. Rf7 {[%clk 0:02:20]}  Ne7 {[%clk 0:03:57]} 57. Bd3 {[%clk 0:02:10]}  Kh2 {[%clk 0:03:42]} 58. a3 {[%clk 0:01:41]}  Nf5 {[%clk 0:00:34]} 59. Rh7 {[%clk 0:01:59]}  h4 {[%clk 0:00:32]} 60. Nd6 {[%clk 0:02:21]}  Rxc5 {[%clk 0:00:32]} 61. Nxf5 {[%clk 0:02:42]}  h3 {[%clk 0:00:49]} 62. Ne3 {[%clk 0:02:48]} 1-0


[Site "http://www.chessbomb.com"]

[Event "World Junior Chess Championship U20 2022"]
[White "Stoyanov, Tsvetan"]
[Black "Stremavicius, Pijus"]
[WhiteFideId "2917173"]
[BlackFideId "12812730"]
[WhiteElo "2449"]
[BlackElo "2363"]
[Result "1-0"]
[Round "02"]
[TimeControl "5400+30"]
[Date "2022.10.13"]
[WhiteClock "0:07:48"]
[BlackClock "0:18:40"]

1. c4 {[%clk 1:27:48]}  e6 {[%clk 1:29:01]} 2. Nf3 {[%clk 1:27:45]}  d5 {[%clk 1:26:57]} 3. e3 {[%clk 1:27:53]}  Nf6 {[%clk 1:26:01]} 4. Nc3 {[%clk 1:27:51]}  c5 {[%clk 1:26:22]} 5. cxd5 {[%clk 1:27:12]}  Nxd5 {[%clk 1:26:24]} 6. Nxd5 {[%clk 1:24:02]}  Qxd5 {[%clk 1:26:03]} 7. b3 {[%clk 1:22:18]}  Be7 {[%clk 1:22:16]} 8. Bb2 {[%clk 1:21:48]}  O-O {[%clk 1:20:13]} 9. Qc2 {[%clk 1:08:54]}  Nc6 {[%clk 1:14:35]} 10. a3 {[%clk 1:06:17]}  Rd8 {[%clk 1:07:45]} 11. Bc4 {[%clk 1:01:13]}  Qd6 {[%clk 0:55:09]} 12. h4 {[%clk 0:57:06]}  Bf6 {[%clk 0:42:11]} 13. Bxf6 {[%clk 0:49:21]}  gxf6 {[%clk 0:42:39]} 14. Rh3 {[%clk 0:36:09]}  Ne5 {[%clk 0:41:51]} 15. Rg3+ {[%clk 0:31:39]}  Kh8 {[%clk 0:42:13]} 16. Qc3 {[%clk 0:30:17]}  Bd7 {[%clk 0:41:22]} 17. Rg5 {[%clk 0:24:11]}  Nxf3+ {[%clk 0:37:41]} 18. gxf3 {[%clk 0:24:40]}  e5 {[%clk 0:37:43]} 19. Rh5 {[%clk 0:23:45]}  Rg8 {[%clk 0:34:42]} 20. O-O-O {[%clk 0:22:59]}  Bc6 {[%clk 0:32:49]} 21. f4 {[%clk 0:11:23]}  e4 {[%clk 0:18:50]} 22. Rf5 {[%clk 0:10:05]}  Rg6 {[%clk 0:18:44]} 23. Bxf7 {[%clk 0:09:29]}  Rh6 {[%clk 0:19:13]} 24. Rg1 {[%clk 0:07:58]}  Rf8 {[%clk 0:18:40]} 25. Rfg5 {[%clk 0:07:48]} 1-0


[Site "http://www.chessbomb.com"]

[Event "World Junior Chess Championship U20 2022"]
[White "Vestby-Ellingsen, Mads"]
[Black "Neelash, Saha"]
[WhiteFideId "1520857"]
[BlackFideId "5094160"]
[WhiteElo "2365"]
[BlackElo "2446"]
[Result "1-0"]
[Round "02"]
[TimeControl "5400+30"]
[Date "2022.10.13"]
[WhiteClock "0:07:49"]
[BlackClock "0:31:26"]

1. d4 {[%clk 1:30:26]}  Nf6 {[%clk 1:30:53]} 2. c4 {[%clk 1:30:26]}  e6 {[%clk 1:31:18]} 3. Nc3 {[%clk 1:31:01]}  d5 {[%clk 1:31:15]} 4. cxd5 {[%clk 1:31:12]}  exd5 {[%clk 1:31:41]} 5. Bg5 {[%clk 1:31:22]}  Bb4 {[%clk 1:27:47]} 6. Nf3 {[%clk 1:24:25]}  h6 {[%clk 1:28:02]} 7. Bh4 {[%clk 1:24:41]}  Qd6 {[%clk 1:21:26]} 8. e3 {[%clk 1:21:45]}  Ne4 {[%clk 1:21:35]} 9. Rc1 {[%clk 1:16:14]}  c5 {[%clk 1:17:38]} 10. Bd3 {[%clk 1:05:59]}  g5 {[%clk 0:57:19]} 11. Bg3 {[%clk 1:02:37]}  Nxg3 {[%clk 0:57:23]} 12. dxc5 {[%clk 0:58:12]}  Qe7 {[%clk 0:42:01]} 13. hxg3 {[%clk 0:57:52]}  Nc6 {[%clk 0:42:28]} 14. O-O {[%clk 0:55:13]}  Be6 {[%clk 0:42:55]} 15. Bb5 {[%clk 0:45:57]}  Qxc5 {[%clk 0:40:32]} 16. Nd4 {[%clk 0:44:04]}  O-O {[%clk 0:37:29]} 17. Bxc6 {[%clk 0:35:53]}  bxc6 {[%clk 0:37:49]} 18. Qh5 {[%clk 0:26:36]}  Kg7 {[%clk 0:32:47]} 19. f4 {[%clk 0:15:29]}  gxf4 {[%clk 0:31:10]} 20. Rxf4 {[%clk 0:15:15]}  Rae8 {[%clk 0:31:27]} 21. Rcf1 {[%clk 0:09:26]}  f5 {[%clk 0:31:42]} 22. Rh4 {[%clk 0:08:38]}  Rh8 {[%clk 0:31:20]} 23. Nxe6+ {[%clk 0:07:28]}  Rxe6 {[%clk 0:31:44]} 24. Rg4+ {[%clk 0:07:44]}  Kf8 {[%clk 0:31:26]} 25. Qxf5+ {[%clk 0:07:49]} 1-0


[Site "http://www.chessbomb.com"]

[Event "World Junior Chess Championship U20 2022"]
[White "Yaniv, Yuval"]
[Black "Gurel, Ediz"]
[WhiteFideId "2823900"]
[BlackFideId "44507356"]
[WhiteElo "2359"]
[BlackElo "2445"]
[Result "1-0"]
[Round "02"]
[TimeControl "5400+30"]
[Date "2022.10.13"]
[WhiteClock "0:04:48"]
[BlackClock "0:09:52"]

1. e4 {[%clk 1:30:53]}  c5 {[%clk 1:30:52]} 2. Nf3 {[%clk 1:31:14]}  d6 {[%clk 1:31:12]} 3. Bb5+ {[%clk 1:29:55]}  Bd7 {[%clk 1:30:16]} 4. Bxd7+ {[%clk 1:30:10]}  Qxd7 {[%clk 1:30:03]} 5. c4 {[%clk 1:29:52]}  Nc6 {[%clk 1:25:48]} 6. d4 {[%clk 1:29:37]}  cxd4 {[%clk 1:25:05]} 7. Nxd4 {[%clk 1:29:55]}  Nf6 {[%clk 1:16:24]} 8. Nc3 {[%clk 1:30:03]}  g6 {[%clk 1:15:18]} 9. f3 {[%clk 1:29:16]}  Bg7 {[%clk 1:09:39]} 10. Be3 {[%clk 1:29:31]}  O-O {[%clk 1:10:02]} 11. O-O {[%clk 1:29:50]}  Rfc8 {[%clk 1:07:02]} 12. b3 {[%clk 1:28:25]}  a6 {[%clk 1:05:15]} 13. a4 {[%clk 1:18:11]}  Qd8 {[%clk 1:02:12]} 14. Qd2 {[%clk 1:13:28]}  Nd7 {[%clk 0:55:48]} 15. Rab1 {[%clk 1:04:41]}  Qa5 {[%clk 0:41:53]} 16. Rfd1 {[%clk 0:56:26]}  Rab8 {[%clk 0:37:29]} 17. b4 {[%clk 0:48:38]}  Qd8 {[%clk 0:34:15]} 18. Nxc6 {[%clk 0:45:07]}  Rxc6 {[%clk 0:24:29]} 19. c5 {[%clk 0:44:11]}  Ne5 {[%clk 0:23:24]} 20. Bf2 {[%clk 0:40:03]}  Rcc8 {[%clk 0:10:25]} 21. Nd5 {[%clk 0:28:31]}  Nd7 {[%clk 0:06:36]} 22. Bh4 {[%clk 0:25:57]}  Nf6 {[%clk 0:06:37]} 23. Nxf6+ {[%clk 0:23:54]}  Bxf6 {[%clk 0:06:57]} 24. Bxf6 {[%clk 0:24:18]}  exf6 {[%clk 0:07:26]} 25. Qxd6 {[%clk 0:23:46]}  Qe8 {[%clk 0:07:55]} 26. Qxf6 {[%clk 0:22:00]}  Qxa4 {[%clk 0:08:19]} 27. h4 {[%clk 0:20:18]}  h5 {[%clk 0:08:20]} 28. Rd5 {[%clk 0:18:03]}  Re8 {[%clk 0:07:03]} 29. Qd4 {[%clk 0:16:05]}  Re6 {[%clk 0:05:16]} 30. Rd7 {[%clk 0:09:31]}  Qb5 {[%clk 0:04:28]} 31. Rd1 {[%clk 0:08:11]}  b6 {[%clk 0:04:01]} 32. Rd8+ {[%clk 0:05:41]}  Rxd8 {[%clk 0:04:25]} 33. Qxd8+ {[%clk 0:06:09]}  Kg7 {[%clk 0:04:51]} 34. Qd4+ {[%clk 0:06:29]}  Kh7 {[%clk 0:04:28]} 35. Qd7 {[%clk 0:04:41]}  Qxd7 {[%clk 0:02:56]} 36. Rxd7 {[%clk 0:05:09]}  Kg7 {[%clk 0:01:48]} 37. Rd6 {[%clk 0:02:55]}  bxc5 {[%clk 0:02:08]} 38. bxc5 {[%clk 0:01:47]}  Kf6 {[%clk 0:01:41]} 39. Kf2 {[%clk 0:01:28]}  Ke7 {[%clk 0:01:37]} 40. Rd2 {[%clk 0:00:35]}  a5 {[%clk 0:00:51]} 41. Ke3 {[%clk 0:07:02]}  a4 {[%clk 0:30:04]} 42. Kd4 {[%clk 0:07:13]}  a3 {[%clk 0:28:03]} 43. Kd5 {[%clk 0:05:48]}  Ra6 {[%clk 0:27:53]} 44. Ra2 {[%clk 0:06:17]}  Kd7 {[%clk 0:28:17]} 45. g3 {[%clk 0:05:01]}  Ra5 {[%clk 0:23:00]} 46. g4 {[%clk 0:04:44]}  hxg4 {[%clk 0:12:54]} 47. fxg4 {[%clk 0:05:13]}  Ra6 {[%clk 0:13:19]} 48. e5 {[%clk 0:04:05]}  Ra4 {[%clk 0:07:44]} 49. h5 {[%clk 0:04:29]}  gxh5 {[%clk 0:07:00]} 50. gxh5 {[%clk 0:04:58]}  Ra6 {[%clk 0:06:16]} 51. h6 {[%clk 0:04:39]}  Rxh6 {[%clk 0:05:55]} 52. Rxa3 {[%clk 0:05:07]}  Rh1 {[%clk 0:04:53]} 53. c6+ {[%clk 0:04:57]}  Kd8 {[%clk 0:05:06]} 54. Ra8+ {[%clk 0:05:16]}  Kc7 {[%clk 0:05:36]} 55. Ra7+ {[%clk 0:05:40]}  Kd8 {[%clk 0:05:52]} 56. Rxf7 {[%clk 0:05:56]}  Rd1+ {[%clk 0:06:12]} 57. Ke6 {[%clk 0:06:19]}  Rc1 {[%clk 0:06:41]} 58. Rd7+ {[%clk 0:06:19]}  Kc8 {[%clk 0:07:05]} 59. Kd6 {[%clk 0:04:33]}  Rd1+ {[%clk 0:07:05]} 60. Ke7 {[%clk 0:04:58]}  Rc1 {[%clk 0:05:53]} 61. c7 {[%clk 0:03:53]}  Rh1 {[%clk 0:05:53]} 62. e6 {[%clk 0:04:16]}  Re1 {[%clk 0:05:54]} 63. Rd2 {[%clk 0:04:18]}  Rf1 {[%clk 0:05:51]} 64. Rc2 {[%clk 0:03:54]}  Re1 {[%clk 0:06:11]} 65. Kf7 {[%clk 0:04:15]}  Rf1+ {[%clk 0:06:39]} 66. Ke8 {[%clk 0:04:37]}  Re1 {[%clk 0:07:06]} 67. e7 {[%clk 0:04:45]}  Rf1 {[%clk 0:07:34]} 68. Rc4 {[%clk 0:03:54]}  Rf2 {[%clk 0:07:55]} 69. Rg4 {[%clk 0:03:37]}  Kxc7 {[%clk 0:08:12]} 70. Rc4+ {[%clk 0:03:37]}  Kb7 {[%clk 0:08:30]} 71. Kd7 {[%clk 0:03:51]}  Rd2+ {[%clk 0:08:56]} 72. Ke6 {[%clk 0:04:18]}  Re2+ {[%clk 0:08:56]} 73. Kd6 {[%clk 0:04:44]}  Re1 {[%clk 0:09:52]} 74. Rc5 {[%clk 0:04:48]} 1-0


[Site "http://www.chessbomb.com"]